Workbook

Sheet R2E Generic Components
B2: last update | C2: 2011-05-18
B3: Type | C3: ss-Type | D3: Component Rating.1 | E3: Component Rating.2 | F3: TE-EPC User | G3: Power / Case | H3: Typical Use | I3: Ratings, Cond. Use & Additional Info
B4: Transistor | C4: IGBT | D4: [5A..100A] | E4: 1200V | F4: LPC | G4: High.Pwr-Trad. | H4: H-Bridge High Frequency Switching on an nominal 540Vdc bus inverter (20..50kHz) | I4: VCE.max=600V
B5: Transistor | C5: IGBT | D5: [5A..100A] | E5: 1200V | F5: LPC | G5: High.Pwr-Trad. | H5: Input Power Filter End of Precharge Switch | I5: VCE.max=600V
B6: Transistor | C6: Mosfet-N | D6: [100A..400A] | E6: [100V..200V] | F6: LPC | G6: High.Pwr-Trad. | H6: 4 quadrant linear Stage, Mosfet used in linear mode | I6: |VDS.max|=40V VGS.range=[-15V..+15V]
B7: Transistor | C7: Mosfet-N | D7: <0.2A | E7: 100V | F7: LPC | G7: Low.Pwr-SMD | H7: Low Power analogue or "digital" circuitery | I7: |VDS.max|=30V VGS.range=[-15V..+15V]
B8: Transistor | C8: Mosfet-N | D8: <20A | E8: 200V | F8: LPC | G8: Med.Pwr-SMD | H8: High frequency switching transistor (20..200kHz) | I8: |VDS.max|=100V VGS.range=[-15V..+15V]
B9: Transistor | C9: Mosfet-P | D9: <0.2A | E9: 100V | F9: LPC | G9: Low.Pwr-SMD | H9: Low Power analogue or "digital" circuitery | I9: |VDS.max|=30V VGS.range=[-15V..+15V]
B10: Transistor | C10: Mosfet-P | D10: <20A | E10: 200V | F10: LPC | G10: Med.Pwr-SMD | H10: High frequency switching transistor (20..200kHz) | I10: |VDS.max|=100V VGS.range=[-15V..+15V]
B11: Transistor | C11: Bipolaire NPN | D11: <0.2A | E11: 100V | F11: LPC | G11: Low.Pwr-SMD | H11: Low Power analogue or "digital" circuitery | I11: |Ic| < 20mA - amplifier transistor
B12: Transistor | C12: Bipolaire NPN | D12: [1A..3A] | E12: 100V | F12: LPC | G12: Med.Pwr-SMD | H12: Pre-regulator | I12: |Ic| < 100mA - amplifier transistor
B13: Transistor | C13: Bipolaire PNP | D13: [1A..3A] | E13: 100V | F13: LPC | G13: Med.Pwr-SMD | H13: Pre-regulator | I13: |Ic| < 100mA - amplifier transistor
B14: Transistor | C14: Thyristor | D14: [100A..1kA] | E14: 400V..1600V | F14: LPC | G14: Power-Trad. | H14: High Power protection (crowbar) | I14: VAK.max=50V
B15: IC | C15: Comparator | D15: Low Power | F15: LPC | G15: Low.Pwr-SMD | H15: Treshold detection. | I15: Vcc=±15V.
B16: IC | C16: Operational Amplifiers | D16: Low Power | F16: LPC | G16: Low.Pwr-SMD | H16: Measurement, filtering, differential, control loops | I16: Vcc=±15V.
B17: IC | C17: Operational Amplifiers | D17: Low Power | F17: LPC | G17: Low.Pwr-SMD | H17: High Precision Measurement single or differential | I17: Vcc=±15V.
B18: IC | C18: Optocoupler | D18: Low Speed | E18: > 2500Veff Insul. | F18: LPC | G18: Low.Pwr-SMD | H18: Low speed analogue signal transmission (control loops, detection)
B19: IC | C19: Optocoupler | D19: High Speed | E19: > 2500Veff Insul. | F19: LPC | G19: Low.Pwr-SMD | H19: High speed digital signal transmission
B20: IC | C20: Voltage Reference | D20: low power | E20: [Vref: 1.2V..2.5V] | F20: LPC | G20: Low.Pwr-SMD | H20: Programmable zener, Control loops | I20: 0.01
B21: IC | C21: ADC | D21: 16bits | F21: LPC | G21: Low.Pwr-SMD | H21: Medium Precision
B22: IC | C22: DAC | D22: 16bits | F22: LPC | G22: Low.Pwr-SMD | H22: Medium Precision
B23: IC | C23: PWM | D23: low Power | E23: ±15V | F23: LPC | G23: Low.Pwr-SMD | H23: Phase shifted PWM for inverter
B24: IC | C24: Analog Switch | D24: low Power | E24: ±15V | F24: LPC | G24: Low.Pwr-SMD | H24: Used for resetting some integrator in control loops, or variable detection thresholds
B25: IC | C25: Current sensor | D25: [0..300A] | F25: LPC | G25: Med.Pwr-Trad. | H25: Output Current measurement for control loops or load protection
B26: IC | C26: Watch Dog | D26: Low Power | E26: Digital | F26: LPC | G26: Low.Pwr-SMD | H26: R2E Power Converter normally won't use any CPLD
B27: IC | C27: CPLD | D27: Low Power | E27: Digital | F27: LPC | G27: Low.Pwr-SMD | H27: R2E Power Converter normally won't use any CPLD
B28: IC | C28: ADC | D28: 24bits | E28: Sigma-Delta principle | F28: CC | G28: Low.Pwr-SMD | H28: High precision, high speed (multi channel)
B29: IC | C29: FPGA | D29: Low Power | F29: CC | G29: Low.Pwr-SMD | H29: Xilinx?, Atmel? or equivalent
B30: IC | C30: Interface | D30: Low Power | E30: RS485 etc. | F30: CC | G30: Low.Pwr-SMD | H30: Serial data link interfaces
B31: IC | C31: 1-Wire devices | D31: Low Power | F31: CC | G31: Low.Pwr-Trad & SMD | H31: Secure authentication and mixed signal functions
B32: IC | C32: Memory | D32: Low Power | E32: ex: 128Kx8bit | F32: CC | G32: Low.Pwr-SMD | H32: CMOS Static RAM
B33: Fan | D33: DC Type | E33: [15..24Vdc] | F33: LPC | G33: Med.Pwr-Trad. | H33: Electronic switching regulator inside
B34: Diode | C34: Standard | D34: <0.2A | E34: [70..100V] | F34: LPC | G34: Low.Pwr-SMD | H34: Low Power analogue or "digital" circuitery | I34: used in ±15V environment. Leakage current no highly critical.
B35: Diode | C35: Fast/Ultra Fast recovery | D35: [100A..300A] | E35: 600V | F35: LPC | G35: Power-Trad. | H35: High Power Rectifier, switching secondary side (20..50kHz)
B36: Diode | C36: Fast/Ultra Fast recovery | D36: [10A..50A] | E36: 1400.1600V | F36: LPC | G36: Power-Trad. | H36: High Power Rectifier 300Hz Rectifier Bridge
B37: Diode | C37: Schottky | D37: [100A..300A] | E37: [70..150V] | F37: LPC | G37: Power-Trad. | H37: High Power Rectifier, switching secondary side (20..50kHz) | I37: Usely used at 75% of their VRRM nominal voltage.
B38: Diode | C38: Zener | D38: low power | E38: [2.7..48V] | F38: LPC | G38: Low.Pwr-SMD | H38: Low Power analogue | I38: BZV55 series.
B39: Diode | C39: Transil | D39: 600W | E39: [2.7..48V] | F39: LPC | G39: Low.Pwr-SMD | H39: Low Power Proteciton

Sheet List
B1: Destination | C1: Procurement | D1: Team | E1: Facility | F1: R2E-status | G1: EPC-Sections | H1: Question | M1: Choices | O1: Component
A2: Don't Change the column order, no insert or delete of any kindAC-DC | O2: Type | P2: SS-Type
B3: R2E-LHC120A-10V | C3: To Be Ordered | D3: TE-EPC-CC | E3: PSI | F3: To Be Tested | G3: CC | H3: Yes | I3: done | J3: FGC2 | K3: Switch-Tester | M3: Save to te-epc-lpc (ythurel only) | O3: AC-DC | P3: 4 MHz Oscillator
B4: R2E-LHC600A-10V | C4: Not Ordered | D4: TE-EPC-LPC | E4: EAIRRAD | F4: Under Test | G4: CC-LPC | H4: No | I4: not done | J4: LHC60A-08V | K4: COP-Tester | M4: Select All cpts > Extended view | O4: Diode | P4: ADC
B5: R2E-LHC4-6-8kA-08V | C5: Ordered | D5: EN-STI | F5: Fully Tested | G5: LPC | H5: Perhaps | I5: not needed | J5: LHC120A-10V | K5: ?? | M5: Select All cpts > Compact view | O5: IC | P5: Bipolar NPN
B6: R2E-LHC/All | C6: Unknown | D6: BE-CO | G6: HPM | H6: ??? | J6: LHC600A-10V | M6: Select All cpts > Compact view (+Final phase) | O6: LED | P6: Bipolar PNP
D7: TRAD | G7: N.A. | J7: ?? | M7: Select CC cpts > Compact view (+Final phase) | O7: Oscillator | P7: Analog Switch
D8: T.B.D. | M8: Select LPC cpts > Compact view (+Final phase) | O8: Transistor | P8: Bridge Rectifier
D9: Other | M9: Select Tests Done > Compact view | P9: Bus Tranceiver
M10: Select EN-STI avail. Works > Compact view | P10: Comparator
P11: DAC
P12: DALLAS driver
P13: DALLAS ESD Diode
P14: DALLAS S/N
P15: DALLAS Thermometer
P16: Demultiplexer
P17: Diode
P18: Fast/Ultra Fast recovery
P19: Fast/Ultra Fast recovery
P20: FIELDDRIVE line driver
P21: FIELDTR Transformer
P22: FPGA
P23: IGBT
P24: LEM
P25: Linear Voltage Regulator
P26: Memory
P27: Micrel Voltage Regulator
P28: Mosfet Driver
P29: Mosfet-?
P30: Mosfet-N
P31: Mosfet-P
P32: Multiplexer
P33: Operational Amplifier
P34: Optocoupler
P35: Optocoupler - Phototransistor
P36: Oscillator
P37: PNP switching transistor
P38: Precision Temperature Sensor
P39: Puls AC-DC
P40: PWM
P41: Quartz
P42: Rectifier bridge
P43: Red/green bi-color LED
P44: Regulator
P45: RS485/422 Driver
P46: Schmitt Trigger
P47: Schmitt Trigger Buffer
P48: Schottky
P49: Small Signal Diode
P50: Specific IC
P51: Standard
P52: Thyristor
P53: Timer
P54: Transil
P55: Voltage Reference
P56: Voltage regulator
P57: Voltage Suppresor
P58: Watchdog
P59: Zener Diode

Sheet old
A2: Component | I2: Test Planification | P2: Test Facility | Q2: Test Results
A3: Type | B3: ss-Type | C3: Reference | D3: Var1 | E3: Var2 | F3: EPC User | G3: Power / Case | H3: Datasheet link | I3: Test Leader | J3: E.U.T Qty Available | K3: E.U.T Qty Tested | L3: Conditions of Use (From EPC) | M3: Test Schematic (EPC or STI) | N3: Test Schematic (EPC or STI) | O3: Ready For Testing | P3: Test Facility | Q3: Processed | R3: Report Link | S3: Status
A4: Transistor | B4: IGBT | C4: IRG4PH50S | F4: LPC | G4: High.Pwr-Trad. | I4: EPC | J4: 20 | K4: 8 | L4: Done | M4: EPC: Done | N4: EPC: Done | O4: Yes | P4: CNRAD | Q4: Pending | R4: link
A5: Transistor | B5: IGBT | C5: IRG4PH40UD | F5: LPC | G5: High.Pwr-Trad. | I5: EPC | J5: 20 | K5: 8 | L5: Done | M5: EPC: Done | N5: EPC: Done | O5: Yes | P5: CNRAD | Q5: Pending | R5: link
A6: Transistor | B6: Mosfet-N | C6: BST82 | F6: LPC | G6: Low.Pwr-SMD | I6: STI
A7: Transistor | B7: Mosfet-N | C7: STD10NF10T4 | F7: LPC | G7: Med.Pwr-SMD | I7: STI | J7: ?
A8: Transistor | B8: Mosfet-N | C8: IRFR9220 | F8: LPC | G8: Med.Pwr-SMD | I8: STI | J8: ?
A9: Transistor | B9: Mosfet-N | C9: IRFB4310PBF | F9: LPC | G9: Med.Pwr-SMD | I9: STI | J9: ?
A10: Transistor | B10: Bipolaire NPN | C10: BCP53 | F10: LPC | G10: Low.Pwr-SMD | I10: STI | J10: 50 | K10: 8 | L10: Done | M10: EPC: Done | N10: EPC: Done | O10: Yes | P10: PSI | Q10: Pending
A11: Transistor | B11: Bipolaire PNP | C11: BCP56 | F11: LPC | G11: Med.Pwr-SMD | I11: STI | J11: 50 | K11: 8 | L11: Done | M11: EPC: Done | N11: EPC: Done | O11: Yes | P11: PSI | Q11: Pending
A12: Transistor | B12: Bipolaire PNP | C12: BSR18 | F12: LPC | G12: Low.Pwr-SMD | I12: STI | J12: 50 | K12: 8 | L12: Done | M12: EPC: Done | N12: EPC: Done | O12: Yes | P12: PSI | Q12: Pending
A13: Transistor | B13: Bipolaire NPN | C13: BSR17 | F13: LPC | G13: Med.Pwr-SMD | I13: STI | J13: 50 | K13: 8 | L13: Done | M13: EPC: Done | N13: EPC: Done | O13: Yes | P13: PSI | Q13: Pending
A14: IC | B14: Comparator | C14: LM339D | F14: LPC | G14: Low.Pwr-SMD | I14: STI | J14: ? | K14: ?
A15: IC | B15: Operational Amplifiers | C15: LM124 | F15: LPC | G15: Low.Pwr-SMD | I15: STI | J15: ? | K15: ?
A16: IC | B16: Operational Amplifiers | C16: TL072 | F16: LPC | G16: Low.Pwr-SMD | I16: STI | J16: ? | K16: ? | L16: Done | M16: EPC: Done | N16: STI: Done | O16: Yes | P16: PSI | Q16: Pending
A17: IC | B17: Operational Amplifiers | C17: OPA2227UA | F17: LPC | G17: Low.Pwr-SMD | I17: STI | J17: ? | K17: ? | L17: Done | M17: EPC: Done | N17: STI: Done | O17: Yes | P17: PSI | Q17: Pending
A18: IC | B18: Optocoupler | C18: TLP124 | F18: LPC | G18: Low.Pwr-SMD | I18: STI | J18: 50 | L18: ?
A19: IC | B19: Optocoupler | C19: 4N35 | F19: LPC | G19: Low.Pwr-SMD | I19: STI | J19: 50 | L19: ?
A20: IC | B20: Optocoupler | C20: HCNR200-300E | F20: LPC | G20: Low.Pwr-SMD | I20: STI | J20: 50 | L20: ?
A21: IC | B21: Voltage Reference | C21: TL432BIDBZTG4 | F21: LPC | G21: Low.Pwr-SMD | I21: STI | J21: 100 | K21: ? | L21: Done | M21: EPC: Done | N21: STI: Done | O21: Yes | P21: PSI | Q21: Pending
A22: IC | B22: Voltage Reference | C22: TL431IDBZTG4 | F22: LPC | G22: Low.Pwr-SMD | H22: link | I22: STI | J22: 100 | K22: ? | L22: Done | M22: EPC: Done | N22: STI: Done | O22: Yes | P22: PSI | Q22: Pending
A23: IC | B23: Voltage Reference | C23: LM4041DIM3ADJ | F23: LPC | G23: Low.Pwr-SMD | H23: link | I23: STI | J23: 100 | K23: ? | L23: Done | M23: EPC: Done | N23: STI: Done | O23: Yes | P23: PSI | Q23: Pending

Sheet R2E Detailled Component List
Y1: 1
B2: last update | C2: 2013-12-09 | V2: R2E Initial & pre-qualification phase | AD2: R2E Final phase
B3: Type | C3: ss-Type | D3: Manuf. Part Number | E3: Date Code | F3: Other Marking Info | G3: Var1 | H3: Var2 | I3: EPC User | J3: Case | K3: Manufacturer | L3: Test Priority 1:low | M3: Cpt R2E Class. | N3: R2E-Project EPC-user | O3: Purchase Status | P3: Avail.? | Q3: Qty per FGClite | R3: Qty per RadDIM | S3: Total Qty needed | T3: Qty Ord'd | U3: Qty Still Avail. | V3: Tester Design Team | W3: Test Campaign Team | X3: LHC Already Installed | Y3: Mix. Field CERN | Z3: MonoEj Protons PSI | AA3: Heavy Ions UCL | AB3: R2E Initial Status | AC3: Number Of Batches To test | AD3: Batch Tester Name | AE3: Tester Design Team | AF3: Mix Field EAIRRAD PS | AG3: R2E Batch Status
B4: Diode | C4: Schottky Power Diode | D4: 10BQ040 | E4: 0241L | G4: 1A | H4: 40V | I4: LPC | J4: DO-214AA | K4: INTERNATIONAL RECTIFIER | L4: 3 | M4: 1 | N4: LPC | O4: Not Ordered | V4: T.B.D. | Y4: =IF(M4="","",IF($M4=0,"not done",IF($M4=1,"not done",IF($M4=2,"not done",)))) -> not done | Z4: =IF(M4="","",IF($M4=0,"not needed",IF($M4=1,"not done",IF($M4=2,"not done",)))) -> not done | AA4: =IF(M4="","",IF($M4=0,"not needed",IF($M4=1,"not needed",IF($M4=2,"not done",)))) -> not needed | AD4: Switch-Tester | AE4: TE-EPC-LPC
B5: Diode | C5: Schottky Power Diode | D5: 10BQ100PBF | E5: P117L: Week 17 2011 with Site ID: L | G5: 1A | H5: 100V | I5: LPC | J5: DO-214AA | K5: VISHAY | L5: 5 | M5: 1 | N5: LPC | O5: Ordered | P5: Yes | T5: 50 | U5: 50 | V5: TE-EPC-LPC | X5: FGC2 | Y5: not done | Z5: not done | AA5: not needed | AB5: To Be Tested | AD5: Switch-Tester | AE5: TE-EPC-LPC
B6: Diode | C6: Schottky Power Diode | D6: 12CWQ04FN | E6: 424G: Week 24 (2004) with site ID: G | F6: Assembly lot code: 8F3S | G6: 12A | H6: 40V | I6: LPC | J6: TO-252AA-(DPAK) | K6: INTERNATIONAL RECTIFIER | L6: 5 | M6: 1 | N6: LPC | O6: Ordered | P6: Yes | T6: 50 | U6: 50 | V6: TE-EPC-LPC | X6: FGC2 | Y6: not done | Z6: not done | AA6: not needed | AB6: To Be Tested | AD6: Switch-Tester | AE6: TE-EPC-LPC
B7: Diode | C7: Schottky Power Diode | D7: 19TQ015SPBF | E7: 102 (New) | F7: Assembly lot code: AC or AD (New) | G7: 19A | H7: 15V | I7: LPC | J7: SMD-220-(D2PACK) | K7: VISHAY | L7: 3 | M7: 1 | N7: LPC | O7: Ordered | P7: Yes | T7: 50 | U7: 50 | V7: T.B.D. | Y7: not done | Z7: not done | AA7: not needed | AB7: To Be Tested | AD7: Switch-Tester | AE7: TE-EPC-LPC
B8: Diode | C8: Rectifier bridge | D8: 1KAB80E | E8: 10-17 | G8: 1.2A | H8: 800V | I8: LPC | J8: D-38 | K8: VISHAY | L8: 2 | M8: 1 | N8: LPC | O8: Ordered | P8: Yes | T8: 50 | U8: 50 | V8: TE-EPC | Y8: not done | Z8: not done | AA8: not needed | AB8: To Be Tested | AD8: Switch-Tester | AE8: TE-EPC-LPC
B9: Diode | C9: High-Speed Diode | D9: 1N4148 | G9: 200mA | H9: 75V | I9: HPM | J9: SOD27 (DO-35) | K9: PHILIPS | L9: 1 | M9: 1 | N9: HPM | O9: Not Ordered | V9: T.B.D. | Y9: not done | Z9: not done | AA9: not needed
B10: Transistor | C10: IGBT | D10: 2MBI-150U4A-120-50 | E10: 16010 | F10: 1EAA508720 | G10: 100A | H10: 1200V | I10: LPC | J10: High.Pwr-Trad. | K10: FUJI | L10: 5 | M10: 1 | N10: LPC | O10: Ordered | P10: Yes | T10: 30 | U10: 30 | V10: TE-EPC | X10: FGC2 | Y10: not done | Z10: not done | AA10: not needed | AB10: To Be Tested | AD10: Switch-Tester | AE10: TE-EPC-LPC
B11: Transistor | C11: Mosfet-N | D11: 2N7000 | G11: 300mA | H11: 60V | I11: LPC | J11: SOT54 | K11: PHILIPS | L11: 2 | M11: 1 | N11: LPC | O11: Not Ordered | V11: T.B.D. | Y11: not done | Z11: not done | AA11: not needed | AD11: Switch-Tester | AE11: TE-EPC-LPC
B12: IC | C12: Opto/Photo coupler | D12: 4N35XSM | E12: 114GG | G12: 100mA | H12: 30V | I12: LPC | J12: DIP-6 | K12: ISOCOM | L12: 5 | M12: 0 | N12: LPC | O12: Ordered | P12: Yes | S12: =Q12*1500+R12*2000 -> 0 | T12: 100 | U12: 53 | V12: EN-STI | W12: EN-STI | X12: FGC2 | Y12: not done | Z12: not needed | AA12: not needed | AB12: Fully Tested | AD12: Switch-Tester | AE12: TE-EPC-LPC
B13: IC | C13: Demultiplexer | D13: 74HCT238 | G13: NA | H13: 5V | I13: LPC | J13: Sox | K13: PHILIPS | L13: 2 | M13: 1 | N13: LPC | O13: Not Ordered | V13: T.B.D. | Y13: not done | Z13: not done | AA13: not needed
B14: IC | C14: Schmitt Trigger Buffer | D14: SN74LVC14APW (74ACT14PW) | G14: NA | H14: 5V0 | I14: CC | J14: TSSOP14 | K14: PHILIPS/TI | L14: 5 | M14: 1 | N14: CC | O14: Ordered | P14: Yes | Q14: 3 | R14: 4 | S14: =Q14*1500+R14*2000 -> 12500 | T14: - | U14: x/450 | V14: EN-STI | W14: EN-STI | X14: FGC2 | Y14: not done | Z14: done | AA14: not needed | AB14: To Be Tested | AD14: Switch-Tester | AE14: TE-EPC-LPC
B15: Diode | C15: Rectifier bridge | D15: 90MT160KPbF | E15: 1139 | F15: 1000023443 or 1000023444 | G15: 90A | H15: 1600V | I15: LPC | J15: High.Pwr-Trad. | K15: VISHAY | L15: 5 | M15: 1 | N15: LPC | O15: Ordered | P15: Yes | T15: 10 | U15: 10 | V15: TE-EPC | Y15: not done | Z15: not done | AA15: not needed | AB15: To Be Tested | AE15: TE-EPC-LPC
B16: IC | C16: ADC | D16: ADC0838CCWM/NPOB | E16: JH04ABE3 | G16: NA | H16: 5V | I16: LPC | J16: SOIC20 | K16: NATIONAL SEMICONDUCTOR | L16: 5 | N16: LPC | O16: Ordered | P16: Yes | T16: 50 | U16: 50 | V16: EN-STI | W16: EN-STI | AB16: To Be Tested
B17: IC | C17: Specific IC | D17: ADM1070ART-REEL7 | E17: 0211 | F17: Lot number: K60307.4; FAB ID:W2444.1 | G17: -48V | H17: NA | I17: LPC | J17: SOT23-6 | K17: ANALOG DEVICES | L17: 3 | M17: 1 | N17: LPC | O17: Not Ordered | V17: T.B.D. | Y17: not done | Z17: not done | AA17: not needed
B18: IC | C18: ADC | D18: ADS1281 | G18: NA | H18: NA | I18: CC | J18: HTQFP-64 | K18: TEXAS INSTRUMENTS | L18: 5 | M18: 2 | N18: CC | O18: Ordered | P18: Yes | Q18: 3 | S18: =Q18*1500+R18*2000 -> 4500 | T18: - | U18: 110 | V18: TE-EPC | Y18: done | Z18: done | AA18: done | AB18: Fully Tested | AD18: FGC2-based | AE18: TE-EPC-CC
B19: Diode | C19: Schottky Power Diode | D19: APT2X101S20J | E19: Date code: 1126 | F19: Lot code: A1407140.1 ALN 12F26020 | G19: 120A | H19: 200V | I19: LPC | J19: SOT-227 | K19: MICROSEMI | L19: 5 | M19: 1 | N19: LPC | O19: Ordered | P19: Yes | T19: 30 | U19: 30 | V19: TE-EPC | Y19: =IF(M19="","",IF($M19=0,"not done",IF($M19=1,"not done",IF($M19=2,"not done",)))) -> not done | Z19: =IF(M19="","",IF($M19=0,"not needed",IF($M19=1,"not done",IF($M19=2,"not done",)))) -> not done | AA19: =IF(M19="","",IF($M19=0,"not needed",IF($M19=1,"not needed",IF($M19=2,"not done",)))) -> not needed | AB19: To Be Tested | AE19: TE-EPC-LPC
B20: Transistor | C20: IGBT | D20: APTGT100A120D1G | E20: 1121/1124/1134 | F20: D11017/D11021/D110032 | G20: 100A | H20: 1200V | I20: LPC | J20: High.Pwr-Trad. | K20: MICROSEMI | L20: 5 | M20: 1 | N20: LPC | O20: Ordered | P20: Yes | T20: 30 | U20: 30 | V20: TE-EPC | X20: FGC2 | Y20: not done | Z20: not done | AA20: not needed | AB20: To Be Tested | AE20: TE-EPC-LPC
B21: Diode | C21: Rectifier bridge | D21: B40C1500RB | G21: 1.6A | H21: 100V | I21: HPM | J21: High.Pwr-Trad. | K21: FAGOR | L21: 1 | M21: 1 | N21: HPM | O21: Not Ordered | V21: T.B.D. | Y21: not done | Z21: not done | AA21: not needed
B22: Diode | C22: Small Signal Diode | D22: BAS31 | G22: 200mA | H22: 90V | I22: HPM | J22: SOT-23 | K22: FAIRCHILD | L22: 1 | M22: 1 | N22: HPM | O22: Not Ordered | V22: T.B.D. | Y22: not done | Z22: not done | AA22: not needed
B23: Diode | C23: Small Signal Diode | D23: BAT54S | E23: KL4 | G23: 200mA | H23: 30V | I23: LPC | J23: SOT-23 | K23: MULTICOMP | L23: 5 | M23: 1 | N23: LPC | O23: Ordered | P23: Yes | T23: 50 | U23: 50 | V23: EN-STI | W23: EN-STI | X23: FGC2 | Y23: not done | Z23: not done | AA23: not needed | AB23: To Be Tested | AE23: TE-EPC-LPC
B24: Diode | C24: General Purpose Diode | D24: BAV101 | G24: 250mA | H24: 120V | I24: HPM | J24: SOD80C | K24: PHILIPS | L24: 1 | M24: 1 | N24: HPM | O24: Not Ordered | V24: T.B.D. | Y24: not done | Z24: not done | AA24: not needed
B25: Diode | C25: Small Signal Diode | D25: BAV99 | G25: 0.2A | H25: 70V | I25: CC | J25: SOT-23 | K25: FAIRCHILD | L25: 3 | M25: 0 | N25: CC-LPC | O25: Not Ordered | P25: No | S25: =Q25*1500+R25*2000 -> 0 | V25: EN-STI | W25: EN-STI | X25: FGC2 | Y25: not done | Z25: not needed | AA25: not needed | AB25: To Be Tested | AE25: TE-EPC-LPC
B26: Diode | C26: Small Signal Diode | D26: BAV99 | E26: A7 | G26: 0.2A | H26: 70V | I26: LPC | J26: SOT23 | K26: MULTICOMP | L26: 3 | M26: 0 | N26: CC-LPC | O26: Ordered | P26: Yes | Q26: 43 | R26: 5 | S26: 74500 | T26: 50 | U26: 50 | V26: EN-STI | W26: EN-STI | Y26: not done | Z26: not needed | AA26: not needed | AB26: To Be Tested
B27: Diode | C27: Small Signal Diode | D27: BAW56 | E27: A1 | G27: 0.2A | H27: 70V | I27: LPC | J27: SOT23 | K27: NXP (PHILIPS) | L27: 3 | M27: 1 | N27: LPC | O27: Ordered | P27: Yes | T27: 50 | U27: 50 | V27: EN-STI | W27: EN-STI | Y27: not done | Z27: not done | AA27: not needed | AB27: To Be Tested | AE27: TE-EPC-LPC
B28: Transistor | C28: Bipolar PNP | D28: BC807-25 | G28: 1A5 | H28: 5V0, 50v | I28: CC | J28: SOT-23 | K28: NATIONAL SEMICONDUCTOR | L28: 3 | M28: 0 | N28: CC | O28: Ordered | P28: Yes | Q28: 2 | S28: =Q28*1500+R28*2000 -> 3000 | T28: - | U28: 3000 | V28: EN-STI | W28: EN-STI | X28: FGC2 | Y28: not done | Z28: not needed | AA28: not needed | AB28: To Be Tested | AD28: Switch-Tester | AE28: TE-EPC-LPC
B29: Transistor | C29: Bipolar NPN | D29: BC817-25 | E29: A1 | G29: NA | H29: 5V0, 50v | I29: CC | J29: SOT-23 | K29: PHILIPS | L29: 3 | M29: 0 | N29: CC | O29: Ordered | P29: Yes | Q29: 28 | S29: 42000 | T29: - | U29: 3000 | V29: EN-STI | W29: EN-STI | X29: FGC2 | Y29: not done | Z29: not needed | AA29: not needed | AB29: To Be Tested | AD29: Switch-Tester | AE29: TE-EPC-LPC
B30: Transistor | C30: Bipolar NPN | D30: BC846B | E30: 18W14 | G30: 100mA | H30: 65V | I30: HPM | J30: SOT23 | K30: NXP | L30: 2 | M30: 1 | N30: HPM | O30: Ordered | P30: Yes | T30: 50 | U30: 50 | V30: EN-STI | W30: EN-STI | Y30: not done | Z30: not done | AA30: not needed | AB30: To Be Tested
B31: Transistor | C31: Bipolar PNP | D31: BC856B | E31: 3B | G31: -100mA | H31: -65V | I31: HPM | J31: SOT23 | K31: MULTICOMP | L31: 2 | M31: 1 | N31: HPM | O31: Ordered | P31: Yes | T31: 50 | U31: 50 | V31: EN-STI | W31: EN-STI | Y31: not done | Z31: not done | AA31: not needed | AB31: To Be Tested
B32: Transistor | C32: Bipolar PNP | D32: BCP53 | G32: -1A | H32: -80V | I32: LPC | J32: SOT-223 | K32: NXP (PHILIPS) | L32: 5 | M32: 1 | N32: LPC | O32: Ordered | P32: Yes | V32: EN-STI | W32: EN-STI | Y32: not done | Z32: not done | AA32: not needed | AB32: Fully Tested | AE32: TE-EPC-LPC
B33: Transistor | C33: Bipolar PNP | D33: BCP53 | G33: 1A2 | H33: 100V | I33: CC | J33: SOT-223 | K33: NXP/PHILIPS | L33: 3 | M33: 0 | N33: CC | O33: Ordered | P33: Yes | Q33: 2 | S33: =Q33*1500+R33*2000 -> 3000 | T33: - | U33: 83 | V33: EN-STI | W33: EN-STI | X33: FGC2 | Y33: not done | Z33: done | AA33: not needed | AB33: To Be Tested | AD33: Switch-Tester | AE33: TE-EPC-LPC
B34: Transistor | C34: Bipolar NPN | D34: BCP56 | G34: 1A | H34: 80V | I34: LPC | J34: SOT-223 | K34: NXP (PHILIPS) | L34: 5 | M34: 1 | N34: LPC | O34: Ordered | P34: Yes | V34: EN-STI | W34: EN-STI | Y34: not done | Z34: =IF(M34="","",IF($M34=0,"not needed",IF($M34=1,"not done",IF($M34=2,"not done",)))) -> not done | AA34: not needed | AB34: Fully Tested | AE34: TE-EPC-LPC
B35: Transistor | C35: Bipolar NPN | D35: BD237 | E35: JB105 | G35: 2A | H35: 80V | I35: HPM | J35: SOT-32 | K35: ST-MICROELECTRONICS | L35: 2 | M35: 1 | N35: HPM | O35: Ordered | P35: Yes | T35: 50 | U35: 50 | V35: EN-STI | W35: EN-STI | Y35: not done | Z35: not done | AA35: not needed | AB35: To Be Tested
B36: Transistor | C36: Bipolar PNP | D36: BD238 | E36: JB045 | G36: 2A | H36: 80V | I36: HPM | J36: SOT-32 | K36: ST-MICROELECTRONICS | L36: 2 | M36: 1 | N36: HPM | O36: Ordered | P36: Yes | T36: 50 | U36: 50 | V36: EN-STI | W36: EN-STI | Y36: not done | Z36: not done | AA36: not needed | AB36: To Be Tested
B37: Transistor | C37: Mosfet-? | D37: BRF30?? | I37: HPM | L37: 1 | M37: 1 | N37: HPM | O37: Not Ordered | V37: T.B.D. | Y37: not done | Z37: not done | AA37: not needed
B38: Transistor | C38: Bipolar NPN | D38: BSR17 | G38: 100mA | H38: 40V | I38: LPC | J38: SOT23 | K38: NXP (PHILIPS) | L38: 5 | M38: 1 | N38: LPC | O38: Ordered | P38: Yes | V38: EN-STI | W38: EN-STI | Y38: not done | Z38: not done | AA38: not needed | AB38: Fully Tested | AE38: TE-EPC-LPC
B39: Transistor | C39: Bipolar PNP | D39: BSR18 | G39: -100mA | H39: -40V | I39: LPC | J39: SOT23 | K39: NXP (PHILIPS) | L39: 5 | M39: 1 | N39: LPC | O39: Ordered | P39: Yes | V39: EN-STI | W39: EN-STI | Y39: not done | Z39: not done | AA39: not needed | AB39: Fully Tested | AE39: TE-EPC-LPC
B40: Transistor | C40: Mosfet-N | D40: BST82 | E40: 02W 60 | G40: 190mA | H40: 100V | I40: LPC + HPM | J40: SOT23 | K40: PHILIPS | L40: 5 | M40: 1 | N40: LPC | O40: Ordered | P40: No | T40: 50 | U40: 0 | V40: EN-STI | W40: EN-STI | Y40: not done | Z40: not done | AA40: not needed | AB40: Under Test | AE40: TE-EPC-LPC
B41: Diode | C41: General Purpose Diode | D41: BYD17D | G41: 1.5A | H41: 200V | I41: HPM | J41: SOD87 | K41: PHILIPS | L41: 1 | M41: 1 | N41: HPM | O41: Not Ordered | V41: T.B.D. | Y41: not done | Z41: not done | AA41: not needed
B42: Diode | C42: Zener Diode | D42: BZT03C200 | G42: NA | H42: 200V | I42: LPC | J42: SOD-57 | K42: VISHAY | L42: 5 | M42: 1 | N42: LPC | O42: Ordered | P42: No | T42: 40 | U42: 40 | V42: EN-STI | W42: EN-STI | X42: FGC2 | Y42: not done | Z42: not done | AA42: not needed | AB42: To Be Tested | AE42: TE-EPC-LPC
B43: Diode | C43: Zener Diode | D43: BZV55-B13,115 | E43: N/A | G43: NA | H43: 13V | I43: LPC | J43: SOD80C | K43: NXP (PHILIPS) | L43: 5 | M43: 1 | N43: LPC | O43: Ordered | P43: Yes | T43: 50 | U43: 50 | V43: EN-STI | W43: EN-STI | X43: FGC2 | Y43: not done | Z43: not done | AA43: not needed | AB43: To Be Tested | AE43: TE-EPC-LPC
B44: Diode | C44: Zener Diode | D44: BZV55-B2V7,115 | E44: N/A | G44: NA | H44: 2.7V..30V | I44: LPC | J44: SOD80C | K44: NXP (PHILIPS) | L44: 5 | M44: 1 | N44: LPC | O44: Ordered | P44: Yes | T44: 50 | U44: 50 | V44: EN-STI | W44: EN-STI | Y44: not done | Z44: not done | AA44: not needed | AB44: To Be Tested | AE44: TE-EPC-LPC
B45: Diode | C45: Zener Diode | D45: BZV55-B6V8,115 | E45: N/A | G45: NA | H45: 6.8V | I45: LPC | J45: SOD80C | K45: NXP (PHILIPS) | L45: 5 | M45: 1 | N45: LPC | O45: Ordered | P45: Yes | T45: 50 | U45: 50 | V45: EN-STI | W45: EN-STI | Y45: not done | Z45: not done | AA45: not needed | AB45: To Be Tested | AE45: TE-EPC-LPC
B46: Diode | C46: Zener Diode | D46: BZX85C3V9 | G46: NA | H46: 3.9V | I46: CC | J46: DO-41 | K46: ? | L46: 3 | M46: 0 | N46: CC | O46: Ordered | P46: Yes | Q46: 1 | S46: =Q46*1500+R46*2000 -> 1500 | T46: - | U46: 300 | V46: EN-STI | W46: EN-STI | X46: FGC2 | Y46: not done | Z46: not needed | AA46: not needed | AB46: To Be Tested | AD46: Switch-Tester | AE46: TE-EPC-LPC
B47: Diode | C47: Zener Diode | D47: BZX85C6V2 | G47: NA | H47: 6.2V | I47: CC | K47: ? | L47: 3 | M47: 0 | N47: CC | O47: Ordered | P47: Yes | Q47: 1 | S47: 1500 | T47: - | U47: 300 | V47: EN-STI | W47: EN-STI | X47: FGC2 | Y47: not done | Z47: not needed | AA47: not needed | AB47: To Be Tested | AD47: Switch-Tester | AE47: TE-EPC-LPC
B48: IC | C48: LEM | D48: CSNS300Mdts | E48: XP11438 | G48: 300A | H48: NA | I48: LPC | J48: High.Pwr-Trad. | K48: HONEYWELL | L48: 5 | M48: 1 | N48: LPC | O48: Ordered | P48: Yes | T48: 30 | U48: 30 | V48: TE-EPC-LPC | X48: FGC2 | Y48: not done | Z48: not done | AA48: not needed | AB48: To Be Tested
B49: Diode | C49: Rectifier bridge | D49: DDB6U145N16L | E49: 1105 or 1114 | F49: HI0082PO HI0114PO | G49: 100A | H49: 1600V | I49: LPC | J49: High.Pwr-Trad. | K49: INFINEON | L49: 5 | M49: 1 | N49: LPC | O49: Ordered | P49: Yes | T49: 10 | U49: 10 | V49: TE-EPC | Y49: not done | Z49: not done | AA49: not needed | AB49: To Be Tested | AE49: TE-EPC-LPC
B50: IC | C50: Analog Switch | D50: DG412DY | K50: VISHAY SILICONIX | L50: 4 | M50: 1 | N50: CC | O50: Ordered | P50: Yes | Q50: 3 | S50: =Q50*1500+R50*2000 -> 4500 | T50: - | U50: 400 | V50: EN-STI | W50: EN-STI | X50: FGC2 | Y50: not done | Z50: done | AA50: =IF(M50="","",IF($M50=0,"not needed",IF($M50=1,"not needed",IF($M50=2,"not done",)))) -> not needed | AB50: Report pending | AD50: Q1? | AE50: TE-EPC-CC
B51: IC | C51: Analog Switch | D51: DG445CY | G51: NA | H51: NA | I51: LPC | J51: SO16 | K51: MAXIM | L51: 2 | M51: 1 | N51: LPC | O51: Not Ordered | V51: T.B.D. | Y51: not done | Z51: not done | AA51: not needed
B52: IC | C52: DALLAS Thermometer | D52: DS18B20 | G52: NA | H52: 3V0-5V5 | I52: CC | J52: uSOP | K52: MAXIM | L52: 4 | M52: 0 | N52: CC | O52: Ordered | P52: Yes | Q52: 3 | R52: 1 | S52: =Q52*1500+R52*2000 -> 6500 | T52: - | U52: 150 | V52: TE-EPC | X52: FGC2 | Y52: done | Z52: not needed | AA52: not needed | AB52: Fully Tested | AD52: DALLAS tester | AE52: TE-EPC-CC
B53: Diode | C53: Schottky Power Diode | D53: DSS2X111-008A | E53: 1122 | F53: lot number: 267666 | G53: 110A | H53: 80 | I53: LPC | J53: SOT-227 | K53: IXYS | L53: 5 | M53: 1 | N53: LPC | O53: Ordered | P53: Yes | T53: 30 | U53: 30 | V53: TE-EPC | Y53: =IF(M53="","",IF($M53=0,"not done",IF($M53=1,"not done",IF($M53=2,"not done",)))) -> not done | Z53: not done | AA53: not needed | AB53: To Be Tested | AE53: TE-EPC-LPC
B54: Diode | C54: Fast/Ultra Fast recovery | D54: ES1D-E3/5AT | E54: ED13 | G54: 1A | H54: 100 | I54: LPC | J54: DO-214AC | K54: VISHAY | L54: 5 | M54: 1 | N54: LPC | O54: Ordered | P54: Yes | T54: 200 | U54: 200 | V54: EN-STI | W54: EN-STI | Y54: not done | Z54: not done | AA54: not needed | AB54: To Be Tested | AE54: TE-EPC-LPC
B55: Transistor | C55: IGBT | D55: F4-75R12KS4 | E55: 1107 | F55: SP000100432; H21011P0; 95046689 | G55: 75A | H55: 1200V | I55: LPC | J55: High.Pwr-Trad. | K55: INFINEON | L55: 5 | M55: 1 | N55: LPC | O55: Ordered | P55: Yes | T55: 10 | U55: 10 | V55: TE-EPC | Y55: not done | Z55: not done | AA55: not needed | AB55: To Be Tested | AE55: TE-EPC-LPC
B56: Transistor | C56: Mosfet-N | D56: FB180SA10 | G56: 180A | H56: 100V | I56: LPC | J56: SOT-227 | K56: INTERNATIONAL RECTIFIER | L56: 2 | M56: 1 | N56: LPC | O56: Not Ordered | V56: T.B.D. | Y56: not done | Z56: not done | AA56: not needed | AE56: TE-EPC-LPC
B57: Transistor | C57: IGBT | D57: FF150R12KS4 | E57: 1113 | F57: SP000100706; HB2327P0, 95053215 | G57: 150A | H57: 1200V | I57: LPC | J57: High.Pwr-Trad. | K57: INFINEON | L57: 5 | M57: 1 | N57: LPC | O57: Ordered | P57: Yes | T57: 10 | U57: 10 | V57: TE-EPC | X57: FGC2 | Y57: not done | Z57: not done | AA57: not needed | AB57: To Be Tested | AE57: TE-EPC-LPC
B58: Transistor | C58: IGBT | D58: FF150R12RT4 | E58: 1041 or 1109 | G58: 150A | H58: 1200V | I58: LPC | J58: High.Pwr-Trad. | K58: INFINEON | L58: 5 | M58: 1 | N58: LPC | O58: Ordered | P58: Yes | T58: 30 | U58: 29 | V58: TE-EPC | X58: FGC2 | Y58: not done | Z58: not done | AA58: not needed | AB58: To Be Tested | AE58: TE-EPC-LPC
B59: Transistor | C59: Bipolar PNP | D59: FMMT591 | G59: 1A | H59: 60V | I59: CC | J59: SOT-23 | K59: ZETEX SEMICONDUCTORS FMMT491 | L59: 3 | M59: 0 | N59: CC | O59: Ordered | P59: Yes | Q59: 3 | S59: =Q59*1500+R59*2000 -> 4500 | T59: - | U59: 1700 | V59: EN-STI | W59: EN-STI | X59: FGC2 | Y59: done | Z59: not needed | AA59: not needed | AB59: Fully Tested | AD59: Switch-Tester | AE59: TE-EPC-LPC
B60: Diode | C60: Fast/Ultra Fast recovery | D60: FS1A | G60: 1A | H60: 50V | I60: HPM | J60: SMAE | K60: CTC | L60: 1 | M60: 1 | N60: HPM | O60: Not Ordered | V60: T.B.D. | Y60: =IF(M60="","",IF($M60=0,"not done",IF($M60=1,"not done",IF($M60=2,"not done",)))) -> not done | Z60: not done | AA60: not needed
B61: IC | C61: Opto/Photo coupler | D61: HCNR200-300E | E61: 1102 | G61: NA | H61: NA | I61: LPC | J61: SO-8 | K61: HEWLETT-PACKARD | L61: 5 | M61: 1 | N61: CC-LPC | O61: Ordered | P61: Yes | S61: =Q61*1500+R61*2000 -> 0 | T61: 50 | U61: 31 | V61: EN-STI | W61: EN-STI | Y61: not done | Z61: DONE | AA61: not needed | AB61: Fully Tested | AE61: TE-EPC-LPC
B62: IC | C62: Operational Amplifier | D62: INA141U | G62: NA | H62: NA | I62: LPC | J62: SO-8 | K62: TEXAS INSTRUMENTS | L62: 5 | M62: 1 | N62: LPC | O62: Ordered | P62: No | U62: 0 | V62: EN-STI | W62: EN-STI | X62: FGC2 | Y62: not done | Z62: not done | AA62: not needed | AB62: Fully Tested | AE62: TE-EPC-LPC
B63: IC | C63: Mosfet Driver | D63: IR2117S | G63: Vout=10-20V | H63: Voffset=600V | I63: LPC | J63: SOIC8 | K63: INTERNATIONAL RECTIFIER | L63: 2 | M63: 1 | N63: LPC | O63: Not Ordered | V63: T.B.D. | Y63: not done | Z63: =IF(M63="","",IF($M63=0,"not needed",IF($M63=1,"not done",IF($M63=2,"not done",)))) -> not done | AA63: not needed
B64: Transistor | C64: Mosfet-N | D64: IRFB4310PBF | E64: 0111 | F64: Assembly line=D; Assembly lot code=Z1W1 | G64: 140A | H64: 100V | I64: LPC | J64: TO-220 | K64: INTERNATIONAL RECTIFIER | L64: 5 | M64: 1 | N64: LPC | O64: Ordered | P64: Yes | T64: 50 | U64: 20 | V64: EN-STI | W64: EN-STI | Y64: not done | Z64: not done | AA64: not needed | AB64: Under Test | AE64: TE-EPC-LPC
B65: Transistor | C65: Mosfet-N | D65: IRFBE30PBF | F65: Y06K GY or Y06K HA or Y07K BT(new order) | G65: 4.1A | H65: 800V | I65: LPC | J65: TO-220AB | K65: VISHAY | L65: 5 | M65: 1 | N65: LPC | O65: Ordered | P65: No | T65: 50 | U65: 40 | V65: TE-EPC | Y65: not done | Z65: not done | AA65: not needed | AB65: To Be Tested | AE65: TE-EPC-LPC
B66: Transistor | C66: Mosfet-N | D66: IRFL110 | G66: 1.5A | H66: 40 | I66: CC | J66: SOT-223 | K66: INTERNATIONAL RECTIFIER | L66: 3 | M66: 0 | N66: CC | O66: Ordered | P66: Yes | Q66: 10 | S66: =Q66*1500+R66*2000 -> 15000 | T66: - | U66: 2500 | V66: EN-STI | W66: EN-STI | X66: FGC2 | Y66: not done | Z66: not needed | AA66: not needed | AB66: To Be Tested | AD66: Switch-Tester | AE66: TE-EPC-LPC
B67: Transistor | C67: Mosfet-N | D67: IRFR224 | G67: 3.8A | H67: 250V | I67: LPC | J67: TO-252AA-(DPAK) | K67: INTERNATIONAL RECTIFIER | L67: 2 | M67: 1 | N67: LPC | O67: Not Ordered | V67: T.B.D. | Y67: not done | Z67: not done | AA67: not needed | AE67: TE-EPC-LPC
B68: Transistor | C68: Mosfet-N | D68: IRFR4105ZPBF | F68: 128P R4 3U | G68: 30A | H68: 55V | I68: LPC | J68: D-PAK | K68: IR | L68: 5 | M68: 1 | N68: LPC | O68: Ordered | P68: Yes | T68: 25 | U68: 25 | V68: EN-STI | W68: EN-STI | X68: FGC2 | Y68: not done | Z68: not done | AA68: not needed | AB68: To Be Tested | AE68: TE-EPC-LPC
B69: Transistor | C69: Mosfet-P | D69: IRFR9220TRPBF | E69: 912WAC | G69: -3.6A | H69: -200V | I69: LPC | J69: TO-252AA-(DPAK) | K69: VISHAY | L69: 5 | M69: 1 | N69: LPC | O69: Ordered | P69: No | T69: 50 | U69: 0 | V69: EN-STI | W69: EN-STI | Y69: not done | Z69: not done | AA69: not needed | AB69: Under Test | AE69: TE-EPC-LPC
B70: Transistor | C70: IGBT | D70: IRG4PH40UD | G70: 21A | H70: 1200V | I70: LPC | J70: TO-247AC | K70: INTERNATIONAL RECTIFIER | L70: 2 | M70: 1 | N70: LPC | O70: Ordered | P70: Yes | V70: TE-EPC | Y70: not done | Z70: not done | AA70: not needed | AB70: Fully Tested | AE70: TE-EPC-LPC
B71: Transistor | C71: IGBT | D71: IRG4PH50S | G71: 33A | H71: 1200V | I71: LPC | J71: TO-247AC | K71: INTERNATIONAL RECTIFIER | L71: 2 | M71: 1 | N71: LPC | O71: Ordered | P71: Yes | V71: TE-EPC | Y71: not done | Z71: not done | AA71: not needed | AB71: Fully Tested | AE71: TE-EPC-LPC
B72: Transistor | C72: Thyristor | D72: IRKT136/12 | G72: 135A | H72: 1600V | I72: LPC | J72: INT-A-Pak | K72: INTERNATIONAL RECTIFIER | L72: 2 | M72: 1 | N72: LPC | O72: Not Ordered | V72: T.B.D. | Y72: not done | Z72: not done | AA72: not needed | AE72: TE-EPC-LPC
B73: Transistor | C73: Mosfet-N | D73: IRLR3105PBF | F73: P107D T2 L6 or P113D B6 M0 (new order) | G73: 25A | H73: 55V | I73: LPC | J73: D-PAK | K73: IR | L73: 5 | M73: 1 | N73: LPC | O73: Ordered | P73: No | T73: 65 | U73: 40 | V73: EN-STI | W73: EN-STI | X73: FGC2 | Y73: not done | Z73: not done | AA73: not needed | AB73: To Be Tested | AE73: TE-EPC-LPC
B74: Transistor | C74: Mosfet-N | D74: IXFP4N100Q | E74: TS1128 | F74: S5732 | G74: 4A | H74: 1000V | I74: LPC | J74: TO-220 | K74: IXYS | L74: 5 | M74: 1 | N74: LPC | O74: Ordered | P74: Yes | T74: 10 | U74: 10 | V74: TE-EPC | Y74: not done | Z74: not done | AA74: not needed | AB74: To Be Tested | AE74: TE-EPC-LPC
B75: Diode | C75: Rectifier bridge | D75: KBU8K | G75: 8A | H75: 800V | I75: HPM | J75: KBU4 | K75: GENERAL SEMICONDUCTOR | L75: 1 | M75: 1 | N75: HPM | O75: Not Ordered | V75: T.B.D. | Y75: not done | Z75: not done | AA75: not needed
B76: IC | C76: LEM | D76: LA 125-P | G76: 125A | H76: NA | I76: LPC | J76: High.Pwr-Trad. | K76: LEM | L76: 2 | M76: 1 | N76: LPC | O76: Not Ordered | V76: T.B.D. | Y76: not done | Z76: not done | AA76: not needed
B77: IC | C77: LEM | D77: LA 306-S | E77: R711115 or R711116 | G77: 300A | H77: NA | I77: LPC | J77: High.Pwr-Trad. | K77: LEM | L77: 5 | M77: 1 | N77: LPC | O77: Ordered | P77: Yes | T77: 20 | U77: 20 | V77: TE-EPC-LPC | X77: FGC2 | Y77: not done | Z77: not done | AA77: not needed | AB77: To Be Tested
B78: LED | C78: Red/green bi-color LED | D78: LED_AVAGO_HSMF-A203-A00J1 | K78: AVAGO TECHNOLOGIES | L78: 0 | M78: 0 | N78: CC | O78: Ordered | P78: Yes | Q78: 6 | R78: 4 | S78: =Q78*1500+R78*2000 -> 17000 | T78: - | U78: 4000 | V78: EN-STI | W78: EN-STI | Y78: not done | Z78: not needed | AA78: =IF(M78="","",IF($M78=0,"not needed",IF($M78=1,"not needed",IF($M78=2,"not done",)))) -> not needed | AB78: To Be Tested | AD78: To be tested? | AE78: TE-EPC-LPC
B79: IC | C79: Voltage Regulator | D79: LHC4913 | G79: 1/3A | H79: 3-12V | I79: CC | J79: PowerSO-20 slug-up | K79: STMicroelectronics | L79: 0 | M79: 1 | N79: CC | O79: Ordered | P79: NO | Q79: 2 | S79: 3000 | T79: - | U79: - | V79: EN-STI | W79: EN-STI | Y79: not needed | Z79: done | AA79: not needed | AB79: Fully Tested | AD79: Switch-Tester | AE79: TE-EPC-LPC
B80: Diode | C80: Small Signal Diode | D80: LL4448 | G80: 0.150A | H80: 100V | I80: HPM | J80: SOD-80 | K80: VISHAY | L80: 1 | M80: 1 | N80: HPM | O80: Not Ordered | V80: T.B.D. | Y80: =IF(M80="","",IF($M80=0,"not done",IF($M80=1,"not done",IF($M80=2,"not done",)))) -> not done | Z80: =IF(M80="","",IF($M80=0,"not needed",IF($M80=1,"not done",IF($M80=2,"not done",)))) -> not done | AA80: not needed
B81: IC | C81: Operational Amplifier | D81: LM124 | G81: 3mA | H81: 32V | I81: LPC | J81: SOIC14 | K81: TEXAS INSTRUMENTS | L81: 5 | M81: 1 | N81: LPC | O81: Unknown | P81: No | V81: EN-STI | W81: EN-STI | X81: FGC2 | Y81: not done | Z81: not done | AA81: not needed | AE81: TE-EPC-LPC
B82: IC | C82: Voltage Regulator | D82: LM2941CS/NOPB | E82: PM03AHE3 | G82: 26V | H82: NA | I82: HPM | J82: TO-263 | K82: NATIONAL SEMICONDUCTOR | L82: 2 | M82: 1 | N82: HPM | O82: Ordered | P82: Yes | T82: 50 | U82: 50 | V82: EN-STI | W82: EN-STI | Y82: not done | Z82: not done | AA82: not needed | AB82: To Be Tested
B83: IC | C83: Voltage Regulator | D83: LM2991S | E83: JM05ABE3 | F83: P+ | G83: -26V | H83: NA | I83: HPM | J83: TO-263 | K83: NATIONAL SEMICONDUCTOR | L83: 2 | M83: 1 | N83: HPM | O83: Ordered | P83: Yes | T83: 50 | U83: 50 | V83: EN-STI | W83: EN-STI | Y83: not done | Z83: not done | AA83: not needed | AB83: To Be Tested
B84: IC | C84: Operational Amplifier | D84: LM321MF | E84: 0330 | F84: Lot code: EMT76073K019 | G84: NA | H84: NA | I84: LPC | J84: SOT23-5 | K84: NATIONAL SEMICONDUCTOR | L84: 3 | M84: 1 | N84: LPC | O84: Not Ordered | P84: Yes | V84: T.B.D. | Y84: not done | Z84: not done | AA84: not needed | AE84: TE-EPC-LPC
B85: IC | C85: Operational Amplifier | D85: LM324 | G85: NA | H85: 32V | I85: HPM | J85: SOIC14 | K85: NATIONAL SEMICONDUCTOR | L85: 1 | M85: 1 | N85: HPM | O85: Not Ordered | V85: T.B.D. | Y85: not done | Z85: not done | AA85: not needed
B86: IC | C86: Comparator | D86: LM339D | E86: OBD3TSKG4 | G86: 1.3mA | H86: 32V | I86: LPC | J86: SOT108-1 | K86: TEXAS INSTRUMENTS | L86: 5 | M86: 1 | N86: LPC | O86: Ordered | P86: Yes | T86: 50 | U86: 33 | V86: EN-STI | W86: EN-STI | Y86: not done | Z86: not done | AA86: not needed | AB86: Fully Tested | AE86: TE-EPC-LPC
B87: IC | C87: Voltage Regulator | D87: LM340MP-5.0 | G87: NA | H87: 5V0 | I87: CC | J87: TO-3 | K87: NATIONAL SEMICONDUCTOR | L87: 5 | M87: 1 | N87: CC | O87: Ordered | P87: Yes | S87: =Q87*1500+R87*2000 -> 0 | T87: - | U87: 134 | V87: EN-STI | W87: EN-STI | X87: FGC2 | Y87: done | Z87: done | AA87: not needed | AB87: Fully Tested | AD87: Switch-Tester | AE87: TE-EPC-LPC
B88: IC | C88: Voltage Reference | D88: LM4040DIM3-5.0 | E88: 0506 | F88: lot number : EMU77406B043; part marking: R5D | G88: 5V | H88: NA | I88: LPC | J88: SOT23 | K88: NATIONAL SEMICONDUCTOR | L88: 3 | M88: 1 | N88: LPC | O88: Not Ordered | U88: 9 | V88: T.B.D. | Y88: =IF(M88="","",IF($M88=0,"not done",IF($M88=1,"not done",IF($M88=2,"not done",)))) -> not done | Z88: =IF(M88="","",IF($M88=0,"not needed",IF($M88=1,"not done",IF($M88=2,"not done",)))) -> not done | AA88: not needed | AE88: TE-EPC-LPC
B89: IC | C89: Voltage Reference | D89: LM4041DIM3ADJ | G89: 1.24V.ref | H89: NA | I89: LPC | J89: SOT23 | K89: NATIONAL SEMICONDUCTOR | L89: 5 | M89: 1 | N89: LPC | O89: Ordered | P89: No | U89: 0 | V89: EN-STI | W89: EN-STI | X89: FGC2 | Y89: =IF(M89="","",IF($M89=0,"not done",IF($M89=1,"not done",IF($M89=2,"not done",)))) -> not done | Z89: =IF(M89="","",IF($M89=0,"not needed",IF($M89=1,"not done",IF($M89=2,"not done",)))) -> not done | AA89: not needed | AB89: Fully Tested | AE89: TE-EPC-LPC
B90: IC | C90: Precision Temperature Sensor | D90: LM45CIM3 | J90: SOT-23 | K90: NATIONAL SEMICONDUCTOR | L90: 4 | M90: 1 | N90: CC | O90: Ordered | P90: Yes | Q90: 1 | S90: =Q90*1500+R90*2000 -> 1500 | T90: - | U90: 940 | V90: EN-STI | W90: EN-STI | X90: FGC2 | Y90: done | Z90: done | AA90: not needed | AB90: Fully Tested | AD90: Switch-Tester | AE90: TE-EPC-LPC
B91: IC | C91: Comparator | D91: LP339D | G91: NA | H91: 30V | I91: LPC | J91: SOIC14 | K91: TEXAS INSTRUMENTS | L91: 3 | M91: 1 | N91: LPC | O91: Not Ordered | V91: T.B.D. | Y91: =IF(M91="","",IF($M91=0,"not done",IF($M91=1,"not done",IF($M91=2,"not done",)))) -> not done | Z91: =IF(M91="","",IF($M91=0,"not needed",IF($M91=1,"not done",IF($M91=2,"not done",)))) -> not done | AA91: not needed | AB91: Fully Tested | AE91: TE-EPC-LPC
B92: IC | C92: Comparator | D92: LP339M/NOPB | E92: JM06ABE3 | G92: 0.1mA | H92: 36V | I92: LPC | J92: SOIC14 | K92: NATIONAL SEMICONDUCTOR | L92: 5 | M92: 1 | N92: LPC | O92: Ordered | P92: Yes | T92: 50 | U92: 34 | V92: EN-STI | W92: EN-STI | Y92: =IF(M92="","",IF($M92=0,"not done",IF($M92=1,"not done",IF($M92=2,"not done",)))) -> not done | Z92: =IF(M92="","",IF($M92=0,"not needed",IF($M92=1,"not done",IF($M92=2,"not done",)))) -> not done | AA92: not needed | AB92: Under Test | AE92: TE-EPC-LPC
B93: IC | C93: Voltage reference | D93: LT1236ACS8-10 | K93: LINEAR TECHNOLOGIY | L93: 5 | M93: 1 | N93: CC | O93: Ordered | P93: Yes | Q93: 1 | S93: =Q93*1500+R93*2000 -> 1500 | T93: - | U93: 100 | V93: EN-STI | W93: EN-STI | X93: FGC2 | Y93: done | Z93: done | AA93: not needed | AB93: Report Pending | AD93: Switch-Tester | AE93: TE-EPC-LPC
B94: Transistor | C94: Bipolar NPN | D94: MAT-01GH | E94: 1124 / 1147 / | G94: 25mA | H94: 45V | I94: HPM | J94: TO-78 | K94: ANALOG DEVICES | L94: 2 | M94: 1 | N94: HPM | O94: Ordered | P94: Yes | T94: 50 | U94: 50 | V94: EN-STI | W94: EN-STI | Y94: =IF(M94="","",IF($M94=0,"not done",IF($M94=1,"not done",IF($M94=2,"not done",)))) -> not done | Z94: =IF(M94="","",IF($M94=0,"not needed",IF($M94=1,"not done",IF($M94=2,"not done",)))) -> not done | AA94: not needed | AB94: To Be Tested
B95: IC | C95: Multiplexer | D95: MAX337CWI | K95: MAXIM | L95: 5 | M95: 1 | N95: CC | O95: Ordered | P95: Yes | Q95: 1 | S95: =Q95*1500+R95*2000 -> 1500 | T95: - | U95: 100 | V95: EN-STI | W95: EN-STI | X95: FGC2 | Y95: done | Z95: done | AA95: =IF(M95="","",IF($M95=0,"not needed",IF($M95=1,"not needed",IF($M95=2,"not done",)))) -> not needed | AB95: Report Pending | AD95: Q1? | AE95: TE-EPC-CC
B96: IC | C96: RS485/422 Driver | D96: MAX3491 | G96: NA | H96: 3V3 | I96: CC | J96: 8 SO/8 Plastic DIP | K96: MAXIM | L96: 4 | M96: 1 | N96: CC | O96: Ordered | P96: Yes | Q96: 4 | R96: 3 | S96: 12000 | T96: - | U96: 200 | V96: EN-STI | W96: EN-STI | Y96: =IF(M96="","",IF($M96=0,"not done",IF($M96=1,"not done",IF($M96=2,"not done",)))) -> not done | Z96: done | AA96: not needed | AB96: Fully Tested | AD96: Q2? | AE96: TE-EPC-CC
B97: IC | C97: DAC | D97: MAX5541CSA | G97: NA | H97: 5V0 | I97: CC | J97: 8 SO | K97: MAXIM | L97: 5 | M97: 1 | N97: CC | O97: Ordered | P97: Yes | Q97: 1 | S97: 1500 | T97: - | U97: 100 | V97: TE-EPC | Y97: done | Z97: done | AA97: not needed | AB97: Fully Tested | AD97: FGC2-based | AE97: TE-EPC-CC
B98: IC | C98: Watchdog | D98: MAX824LEUK-T | G98: 10uA | H98: 5.5V | I98: LPC | J98: SOT23 | K98: MAXIM | L98: 2 | M98: 1 | N98: LPC | O98: Not Ordered | V98: T.B.D. | Y98: =IF(M98="","",IF($M98=0,"not done",IF($M98=1,"not done",IF($M98=2,"not done",)))) -> not done | Z98: =IF(M98="","",IF($M98=0,"not needed",IF($M98=1,"not done",IF($M98=2,"not done",)))) -> not done | AA98: not needed
B99: Transistor | C99: Bipolar NPN | D99: MD2310FX | F99: B836 or B825 or B107 (new order) | G99: 14A | H99: 700V | I99: LPC | J99: TO-3PF | K99: ST-MICROELECTRONICS | L99: 5 | M99: 1 | N99: LPC | O99: Ordered | P99: No | T99: 50 | U99: 40 | V99: TE-EPC | Y99: =IF(M99="","",IF($M99=0,"not done",IF($M99=1,"not done",IF($M99=2,"not done",)))) -> not done | Z99: not done | AA99: not needed | AB99: To Be Tested | AE99: TE-EPC-LPC
B100: IC | C100: Voltage Regulator | D100: MIC37302 | K100: MICREL | L100: 5 | M100: 1 | N100: CC | O100: Ordered | P100: Yes | R100: 2 | S100: =Q100*1500+R100*2000 -> 4000 | T100: - | U100: 240 | V100: EN-STI | W100: EN-STI | Y100: done | Z100: done | AA100: not needed | AB100: To Be Tested | AD100: Switch-Tester | AE100: TE-EPC-LPC
B101: IC | C101: PWM | D101: MIC38HC45BM | G101: 4mA | H101: 20V | I101: LPC | J101: SOIC8 | K101: MICREL | L101: 5 | M101: 1 | N101: LPC | O101: To Be Ordered | P101: No | V101: T.B.D. | X101: FGC2 | Y101: =IF(M101="","",IF($M101=0,"not done",IF($M101=1,"not done",IF($M101=2,"not done",)))) -> not done | Z101: not done | AA101: not needed | AB101: To Be Tested
B102: Transistor | C102: Bipolar NPN | D102: MJ15003 | G102: 20A | H102: 140V | I102: HPM | J102: TO-3 | K102: ON SEMICONDUCTOR | L102: 1 | M102: 1 | N102: HPM | O102: Not Ordered | V102: T.B.D. | Y102: not done | Z102: not done | AA102: not needed
B103: Transistor | C103: Bipolar PNP | D103: MJD45H11 | G103: 8A | H103: 80V | I103: LPC | J103: DPAK | K103: FAIRCHILD | L103: 2 | M103: 1 | N103: LPC | O103: Not Ordered | V103: TE-EPC | Y103: not done | Z103: not done | AA103: not needed | AE103: TE-EPC-LPC
B104: Transistor | C104: Bipolar NPN | D104: MJE4343 | G104: 16A | H104: 160V | I104: HPM | J104: TO-218 | K104: ON SEMICONDUCTOR | L104: 1 | M104: 1 | N104: HPM | O104: Not Ordered | V104: T.B.D. | Y104: not done | Z104: not done | AA104: not needed
B105: Transistor | C105: Bipolar PNP | D105: MJE4353 | G105: 16A | H105: 160V | I105: HPM | J105: TO-218 | K105: ON SEMICONDUCTOR | L105: 1 | M105: 1 | N105: HPM | O105: Not Ordered | V105: T.B.D. | Y105: not done | Z105: not done | AA105: not needed
B106: IC | C106: Operational Amplifier | D106: OP07CSZ | E106: 1965588 | G106: NA | H106: 18V | I106: HPM | J106: SOIC8 | K106: ANALOG DEVICES | L106: 2 | M106: 1 | N106: HPM | O106: Ordered | P106: Yes | T106: 50 | U106: 50 | V106: EN-STI | W106: EN-STI | Y106: not done | Z106: not done | AA106: not needed | AB106: To Be Tested
B107: IC | C107: Operational Amplifier | D107: OP184 F | G107: NA | H107: 36V | I107: HPM | J107: SOIC8 | K107: ANALOG DEVICES | L107: 1 | M107: 1 | N107: HPM | O107: Not Ordered | V107: T.B.D. | Y107: not done | Z107: not done | AA107: not needed
B108: IC | C108: Operational Amplifier | D108: OP27EPZ | E108: 1109 | F108: C72217 | G108: NA | H108: 22V | I108: HPM | J108: DIP8 | K108: ANALOG DEVICES | L108: 2 | M108: 1 | N108: HPM | O108: Ordered | P108: Yes | T108: 50 | U108: 50 | V108: EN-STI | W108: EN-STI | Y108: not done | Z108: not done | AA108: not needed | AB108: To Be Tested
B109: IC | C109: Operational Amplifier | D109: OP27GP | G109: NA | H109: 22V | I109: HPM | J109: DIP8 | K109: TEXAS INSTRUMENTS | L109: 1 | M109: 1 | N109: HPM | O109: Not Ordered | V109: T.B.D. | Y109: not done | Z109: not done | AA109: not needed
B110: IC | C110: Operational Amplifier | D110: OP27GS | G110: NA | H110: 22V | I110: HPM | J110: SOIC8 | K110: TEXAS INSTRUMENTS | L110: 1 | M110: 1 | N110: HPM | O110: Not Ordered | V110: T.B.D. | Y110: not done | Z110: not done | AA110: not needed
B111: IC | C111: Operational Amplifier | D111: OP297GSZ | E111: 1043 | F111: M80064 | G111: NA | H111: 18V | I111: HPM | J111: SOIC8 | K111: ANALOG DEVICES | L111: 2 | M111: 1 | N111: HPM | O111: Ordered | P111: Yes | T111: 50 | U111: 50 | V111: EN-STI | W111: EN-STI | Y111: not done | Z111: not done | AA111: not needed | AB111: To Be Tested
B112: IC | C112: Operational Amplifier | D112: OP77EZ | E112: 1035 | F112: E174132 | G112: NA | H112: 18V | I112: HPM | J112: DIP8 | K112: ANALOG DEVICES | L112: 2 | M112: 1 | N112: HPM | O112: Ordered | P112: Yes | T112: 50 | U112: 50 | V112: EN-STI | W112: EN-STI | Y112: not done | Z112: not done | AA112: not needed | AB112: To Be Tested
B113: IC | C113: Operational Amplifier | D113: OPA2227U | K113: ANALOG DEVICES | L113: 3 | M113: 1 | N113: CC | O113: Ordered | P113: Yes | Q113: 9 | S113: =Q113*1500+R113*2000 -> 13500 | T113: - | U113: 900 | V113: EN-STI | W113: EN-STI | X113: FGC2 | Y113: done | Z113: done | AA113: not needed | AB113: To Be Tested | AD113: COP-Tester | AE113: TE-EPC-LPC
B114: IC | C114: Operational Amplifier | D114: OPA2227UA | G114: NA | H114: 18V | I114: LPC | J114: SOIC8 | K114: TEXAS INSTRUMENTS | L114: 5 | M114: 1 | N114: LPC | O114: Ordered | P114: Yes | U114: 61 | V114: EN-STI | W114: EN-STI | Y114: =IF(M114="","",IF($M114=0,"not done",IF($M114=1,"not done",IF($M114=2,"not done",)))) -> not done | Z114: not done | AA114: not needed | AB114: Fully Tested | AE114: TE-EPC-LPC
B115: IC | C115: Operational Amplifier | D115: OPA544T | E115: 05Z202V G3 | G115: NA | H115: NA | I115: HPM | J115: TO-220 | K115: TEXAS INSTRUMENTS | L115: 2 | M115: 1 | N115: HPM | O115: Ordered | P115: Yes | T115: 50 | U115: 50 | V115: EN-STI | W115: EN-STI | Y115: =IF(M115="","",IF($M115=0,"not done",IF($M115=1,"not done",IF($M115=2,"not done",)))) -> not done | Z115: not done | AA115: not needed | AB115: To Be Tested
B116: Transistor | C116: Mosfet-N | D116: PMBF4392,215 | E116: WGK15 | G116: 50mA | H116: 30V | I116: HPM | J116: SOT23 | K116: NXP (PHILIPS) | L116: 2 | M116: 1 | N116: HPM | O116: Ordered | P116: Yes | T116: 50 | U116: 50 | V116: EN-STI | W116: EN-STI | Y116: =IF(M116="","",IF($M116=0,"not done",IF($M116=1,"not done",IF($M116=2,"not done",)))) -> not done | Z116: not done | AA116: not needed | AB116: To Be Tested
B117: IC | C117: FPGA | D117: ProASIC-3-250-VQ100 | G117: NA | H117: 3V3 | I117: CC | J117: PQFP208 | K117: MICROSEMI | L117: 5 | M117: 2 | N117: CC | O117: To Be Ordered | P117: NO | S117: =Q117*1500+R117*2000 -> 0 | T117: - | U117: - | V117: TE-EPC | Y117: =IF(M117="","",IF($M117=0,"not done",IF($M117=1,"not done",IF($M117=2,"not done",)))) -> not done | Z117: done | AA117: not done | AB117: To Be Tested | AD117: FPGA-based | AE117: TE-EPC-CC
B118: IC | C118: FPGA | D118: ProASIC-3-A3P1000-PQFP208 | G118: NA | H118: 3V3 | I118: CC | J118: PQFP208 | K118: MICROSEMI | L118: 5 | M118: 2 | N118: CC | O118: To Be Ordered | P118: NO | S118: 0 | T118: - | U118: - | V118: TE-EPC | Y118: =IF(M118="","",IF($M118=0,"not done",IF($M118=1,"not done",IF($M118=2,"not done",)))) -> not done | Z118: done | AA118: not done | AB118: To Be Tested | AD118: FPGA-based | AE118: TE-EPC-CC
B119: IC | C119: FPGA | D119: ProASIC3-A3P400-PQFP208 | G119: NA | H119: 3V3 | I119: CC | J119: PQFP208 | K119: MICROSEMI | L119: 5 | M119: 2 | N119: CC | O119: Not Ordered | P119: Yes | Q119: 1 | R119: 1 | S119: 3500 | T119: - | U119: all | V119: BE-CO | Y119: not needed | Z119: done | AA119: not done | AB119: Fully Tested | AD119: BE-CO | AE119: BE-CO
B120: IC | C120: Memory | D120: R1LV1616RSA-7SI | K120: RENESAS | L120: 4 | M120: 1 | N120: CC | O120: To Be Ordered | P120: Yes | Q120: 1 | S120: 1500 | T120: - | U120: 10 | V120: TE-EPC | Y120: not needed | Z120: done | AA120: =IF(M120="","",IF($M120=0,"not needed",IF($M120=1,"not needed",IF($M120=2,"not done",)))) -> not needed | AB120: Fully Tested | AD120: FGC2-based or FPGA-based | AE120: TE-EPC-CC
B121: Diode | C121: Rectifier bridge | D121: SKB 25/04 | G121: NA | H121: 400V | I121: HPM | J121: G 10b | K121: SEMIKRON | L121: 1 | M121: 1 | N121: HPM | O121: Not Ordered | V121: T.B.D. | Y121: =IF(M121="","",IF($M121=0,"not done",IF($M121=1,"not done",IF($M121=2,"not done",)))) -> not done | Z121: =IF(M121="","",IF($M121=0,"not needed",IF($M121=1,"not done",IF($M121=2,"not done",)))) -> not done | AA121: not needed
B122: Diode | C122: Rectifier bridge | D122: SKD110/16 | E122: 11090P R | G122: 110A | H122: 1600V | I122: LPC | J122: High.Pwr-Trad. | K122: SEMIKRON | L122: 5 | M122: 1 | N122: LPC | O122: Ordered | P122: Yes | T122: 10 | U122: 10 | V122: TE-EPC | Y122: not done | Z122: not done | AA122: not needed | AB122: To Be Tested | AE122: TE-EPC-LPC
B123: AC-DC | C123: Single Output Voltage | D123: SL5 E300 | G123: 12 | H123: 24V | I123: LPC | J123: Specific | K123: PULS | L123: 5 | M123: 1 | N123: LPC | O123: Ordered | P123: Yes | V123: EN-STI | W123: EN-STI | Y123: not done | Z123: not done | AA123: not needed | AB123: Fully Tested
B124: Diode | C124: Voltage Suppresor | D124: SMBJ15CA | E124: 1023BM | G124: 600W | H124: 15V | I124: LPC | J124: JEDEC DO-214AA | K124: MULTICOMP | L124: 5 | M124: 0 | N124: LPC | O124: Ordered | P124: Yes | T124: 50 | U124: 50 | V124: EN-STI | W124: EN-STI | Y124: not done | Z124: not needed | AA124: not needed | AB124: To Be Tested | AE124: TE-EPC-LPC
B125: Diode | C125: Voltage Suppresor | D125: SMBJ5.0CA | E125: AA51KE | G125: 600W | H125: 5V | I125: LPC | J125: JEDEC DO-214AA | K125: FAIRCHILD | L125: 5 | M125: 0 | N125: LPC | O125: Ordered | P125: Yes | T125: 50 | U125: 50 | V125: EN-STI | W125: EN-STI | X125: FGC2 | Y125: not done | Z125: not needed | AA125: not needed | AB125: To Be Tested | AE125: TE-EPC-LPC
B126: IC | C126: Schmitt Trigger | D126: SN74ACT14D | G126: NA | H126: NA | I126: LPC | J126: SOIC14 | K126: TEXAS INSTRUMENTS | L126: 2 | M126: 1 | N126: LPC | O126: Not Ordered | V126: T.B.D. | Y126: not done | Z126: not done | AA126: not needed
B127: IC | C127: Bus Tranceiver | D127: SN74LVC2T45 | K127: TI | L127: 5 | M127: 1 | N127: CC | O127: Ordered | P127: Yes | Q127: 28 | R127: 1 | S127: =Q127*1500+R127*2000 -> 44000 | T127: - | U127: 250 | V127: EN-STI | W127: EN-STI | X127: FGC2 | Y127: not done | Z127: done | AA127: not needed | AB127: To Be Tested | AD127: Switch-Tester | AE127: TE-EPC-LPC
B128: Oscillator | C128: Oscillator | D128: SPXO018042-CFPS-73 | G128: NA | H128: 3V3-5V0 | I128: CC | J128: 7x5mm SMD | K128: IQD Frequency Products | L128: 4 | M128: 1 | N128: CC | O128: Ordered | P128: Yes | Q128: 5 | S128: 7500 | T128: - | U128: 1000 | V128: EN-STI | W128: EN-STI | Y128: not done | Z128: done | AA128: not needed | AB128: Report Pending | AD128: Q3? | AE128: TE-EPC-CC
B129: IC | C129: FIELDDRIVE line driver | D129: SSSB231 | K129: CEGELEC | L129: 5 | M129: 2 | N129: CC | O129: Not Ordered | P129: Yes | Q129: 1 | S129: 1500 | T129: - | U129: all | V129: BE-CO | X129: FGC2 | Y129: not needed | Z129: done | AA129: not done | AB129: To Be Tested | AD129: BE-CO | AE129: BE-CO
B130: Transistor | C130: Mosfet-N | D130: STD10NF10T4 | E130: GKOOL111 (old ones) | F130: GKOR5134 (new ones) | G130: 13A | H130: 100V | I130: LPC | J130: DPAK | K130: ST-MICROELECTRONICS | L130: 5 | M130: 1 | N130: LPC | O130: Ordered | P130: Yes | T130: 50+50 | U130: 40 | V130: EN-STI | W130: EN-STI | Y130: =IF(M130="","",IF($M130=0,"not done",IF($M130=1,"not done",IF($M130=2,"not done",)))) -> not done | Z130: not done | AA130: =IF(M130="","",IF($M130=0,"not needed",IF($M130=1,"not needed",IF($M130=2,"not done",)))) -> not needed | AB130: Under Test | AE130: TE-EPC-LPC
B131: Transistor | C131: Mosfet-N | D131: STP3NB100 | G131: 3.1A | H131: 1000V | I131: LPC | J131: TO-220 | K131: ST-MICROELECTRONICS | L131: 2 | M131: 1 | N131: LPC | O131: Not Ordered | V131: T.B.D. | Y131: not done | Z131: not done | AA131: not needed | AE131: TE-EPC-LPC
B132: Transistor | C132: Mosfet-N | D132: STP3NK80Z | F132: 6403S V3 CHN 023 | G132: 2.5A | H132: 800V | I132: LPC | J132: TO-220 | K132: ST-MICROELECTRONICS | L132: 5 | M132: 1 | N132: LPC | O132: Ordered | P132: Yes | T132: 25 | U132: 25 | V132: TE-EPC | Y132: not done | Z132: not done | AA132: not needed | AB132: To Be Tested | AE132: TE-EPC-LPC
B133: Transistor | C133: Mosfet-N | D133: STP4N150 | F133: G401A VW CHN 132 | G133: 4A | H133: 1500V | I133: LPC | J133: TO-220 | K133: ST-MICROELECTRONICS | L133: 5 | M133: 1 | N133: LPC | O133: Ordered | P133: Yes | T133: 10 | U133: 9 | V133: TE-EPC | Y133: not done | Z133: not done | AA133: not needed | AB133: To Be Tested | AE133: TE-EPC-LPC
B134: Transistor | C134: Mosfet-N | D134: STP8NK100Z | F134: 640KS V1d CHN 03b or 640NV V1d CHN 04b | G134: 6.5A | H134: 1000V | I134: LPC | J134: TO-220 | K134: ST-MICROELECTRONICS | L134: 5 | M134: 1 | N134: LPC | O134: Ordered | P134: Yes | T134: 10 | U134: 9 | V134: TE-EPC | Y134: not done | Z134: not done | AA134: not needed | AB134: To Be Tested | AE134: TE-EPC-LPC
B135: Diode | C135: Schottky Power Diode | D135: STPS200170TV1 | E135: 200170TV1 | F135: CZOAOVW MAR107 | G135: 120A | H135: 200V | I135: LPC | J135: SOT-227 | K135: ST-MICROELECTRONICS | L135: 5 | M135: 1 | N135: LPC | O135: Ordered | P135: Yes | T135: 26 | U135: 26 | V135: TE-EPC | Y135: not done | Z135: not done | AA135: not needed | AB135: To Be Tested | AE135: TE-EPC-LPC
B136: Diode | C136: Fast/Ultra Fast recovery | D136: STTH112U | E136: GU12 | F136: GP045 GP047 | G136: 6A | H136: 1200V | I136: LPC | J136: SMA/B | K136: ST-MICROELECTRONICS | L136: 5 | M136: 1 | N136: LPC | O136: Ordered | P136: Yes | T136: 50 | U136: 49 | V136: TE-EPC | Y136: not done | Z136: not done | AA136: not needed | AB136: To Be Tested | AE136: TE-EPC-LPC
B137: Transistor | C137: Mosfet-N | D137: SUD23N06-31L-E3 | F137: BR L84B | G137: 23A | H137: 60V | I137: LPC | J137: TO-252 | K137: VISHAY | L137: 5 | M137: 1 | N137: LPC | O137: Ordered | P137: Yes | T137: 25 | U137: 25 | V137: EN-STI | W137: EN-STI | X137: FGC2 | Y137: not done | Z137: not done | AA137: not needed | AB137: To Be Tested | AE137: TE-EPC-LPC
B138: IC | C138: Operational Amplifier | D138: THS4130 | G138: NA | H138: 5V0-15V | I138: CC | J138: THS4130/THS4131 | K138: TEXAS INSTRUMENTS | L138: 4 | M138: 1 | N138: CC | O138: Ordered | P138: Yes | Q138: 3 | S138: =Q138*1500+R138*2000 -> 4500 | T138: - | U138: 300 | V138: EN-STI | W138: EN-STI | Y138: not done | Z138: done | AA138: not needed | AB138: Report Pending | AD138: COP-Tester | AE138: TE-EPC-LPC
B139: Transistor | C139: Bipolar NPN | D139: TIP110 | G139: 2A | H139: 60V | I139: HPM | J139: TO-220 | K139: ST-MICROELECTRONICS | L139: 1 | M139: 1 | N139: HPM | O139: Not Ordered | V139: T.B.D. | Y139: =IF(M139="","",IF($M139=0,"not done",IF($M139=1,"not done",IF($M139=2,"not done",)))) -> not done | Z139: not done | AA139: not needed
B140: Transistor | C140: Bipolar PNP | D140: TIP115 | G140: 2A | H140: 60V | I140: HPM | J140: TO-220 | K140: ST-MICROELECTRONICS | L140: 1 | M140: 1 | N140: HPM | O140: Not Ordered | V140: T.B.D. | Y140: not done | Z140: not done | AA140: not needed
B141: Transistor | C141: Bipolar NPN | D141: TIP33C | G141: 10A | H141: 100V | I141: HPM | J141: TO-218 | K141: ST-MICROELECTRONICS | L141: 1 | M141: 1 | N141: HPM | O141: Not Ordered | V141: T.B.D. | Y141: not done | Z141: not done | AA141: not needed
B142: Transistor | C142: Bipolar PNP | D142: TIP34C | G142: 10A | H142: 100V | I142: HPM | J142: TO-218 | K142: ST-MICROELECTRONICS | L142: 1 | M142: 1 | N142: HPM | O142: Not Ordered | V142: T.B.D. | Y142: not done | Z142: not done | AA142: not needed
B143: IC | C143: Operational Amplifier | D143: TL072 | G143: NA | H143: NA | I143: LPC | J143: Low.Pwr-SMD | K143: TEXAS INSTRUMENTS | L143: 5 | M143: 1 | N143: LPC | O143: Ordered | P143: Yes | U143: 60 | V143: EN-STI | W143: EN-STI | Y143: not done | Z143: not done | AA143: not needed | AB143: Fully Tested | AE143: TE-EPC-LPC
B144: IC | C144: Operational Amplifier | D144: TL084CD | G144: NA | H144: NA | I144: LPC | J144: SOIC14 | K144: ST-MICROELECTRONICS | L144: 2 | M144: 1 | N144: LPC | O144: Not Ordered | V144: T.B.D. | Y144: not done | Z144: not done | AA144: not needed | AE144: TE-EPC-LPC
B145: IC | C145: Voltage Reference | D145: TL431IDBZTG4 | G145: 2.5V.ref | H145: NA | I145: LPC | J145: SOT-23 | K145: TEXAS INSTRUMENTS | L145: 5 | M145: 1 | N145: LPC | O145: Ordered | P145: No | U145: 0 | V145: EN-STI | W145: EN-STI | Y145: not done | Z145: not done | AA145: not needed | AB145: Fully Tested | AE145: TE-EPC-LPC
B146: IC | C146: Voltage Reference | D146: TL432BIDBZTG4 | G146: 2.5V.ref | H146: NA | I146: LPC | J146: SOT-23 | K146: TEXAS INSTRUMENTS | L146: 5 | M146: 1 | N146: LPC | O146: Ordered | P146: No | U146: 0 | V146: EN-STI | W146: EN-STI | Y146: not done | Z146: not done | AA146: not needed | AB146: Fully Tested | AE146: TE-EPC-LPC
B147: IC | C147: Timer | D147: TLC555CD | G147: NA | H147: NA | I147: LPC | J147: SOIC8 | K147: TEXAS INSTRUMENTS | L147: 2 | M147: 1 | N147: LPC | O147: Not Ordered | V147: T.B.D. | Y147: not done | Z147: not done | AA147: not needed
B148: IC | C148: Voltage Regulator | D148: TPS73033 | K148: TI | L148: 5 | M148: 1 | N148: CC | O148: Ordered | P148: Yes | Q148: 1 | S148: =Q148*1500+R148*2000 -> 1500 | T148: - | U148: 47 | V148: EN-STI | W148: EN-STI | Y148: not done | Z148: done | AA148: not needed | AB148: Report Pending | AD148: Switch-Tester | AE148: TE-EPC-LPC
B149: Diode | C149: Voltage Suppresor | D149: TVS15V | G149: NA | I149: CC | J149: SOD123W | K149: FAGOR | L149: 3 | M149: 0 | N149: CC | O149: Ordered | P149: Yes | Q149: 12 | S149: 18000 | T149: - | U149: 675 | V149: EN-STI | W149: EN-STI | X149: FGC2 | Y149: not done | Z149: not needed | AA149: not needed | AB149: To Be Tested | AD149: Switch-Tester | AE149: TE-EPC-LPC
B150: IC | C150: PWM | D150: UCC3895DW | E150: 07ZE0LW | G150: NA | H150: NA | I150: LPC | J150: SOIC20 | K150: TEXAS INSTRUMENTS | L150: 5 | M150: 2 | N150: LPC | O150: Ordered | P150: Yes | T150: 50 | U150: 50 | V150: T.B.D. | X150: FGC2 | Y150: not done | Z150: not done | AA150: not done | AB150: To Be Tested
B151: IC | C151: PWM | D151: UCC38C45DG4 | E151: 08M | F151: AN8E | G151: 4mA | H151: 18V | I151: LPC | J151: SOIC8 | K151: TEXAS INSTRUMENTS | L151: 5 | M151: 1 | N151: LPC | O151: Ordered | P151: Yes | T151: 50 | U151: 50 | V151: T.B.D. | X151: FGC2 | Y151: not done | Z151: not done | AA151: not needed | AB151: To Be Tested
B152: IC | C152: Specific IC | D152: UCC39002D | G152: NA | H152: NA | I152: LPC | J152: SO8 | K152: TEXAS INSTRUMENTS | L152: 3 | M152: 1 | N152: LPC | O152: Not Ordered | V152: T.B.D. | Y152: not done | Z152: not done | AA152: not needed
B153: Diode | C153: Rectifier bridge | D153: VS-26MT160 | E153: 201022INVM; 201105INVM; 201107INVM | F153: lot code: IND0F02; IND1A43; IND1B21 | G153: 25A | H153: 1600V | I153: LPC | J153: D-63 | K153: INTERNATIONAL RECTIFIER | L153: 2 | M153: 1 | N153: LPC | O153: Ordered | P153: Yes | T153: 42 | U153: 42 | V153: TE-EPC | Y153: not done | Z153: not done | AA153: not needed | AB153: To Be Tested | AE153: TE-EPC-LPC
Y154: =IF(M154="","",IF($M154=0,"not done",IF($M154=1,"not done",IF($M154=2,"not done",)))) ->  | Z154: =IF(M154="","",IF($M154=0,"not needed",IF($M154=1,"not done",IF($M154=2,"not done",)))) ->  | AF154: =IF(W154="","",IF($M154=0,"not needed",IF($M154=1,"not needed",IF($M154=2,"not done",)))) -> 
AA161: =IF(M161="","",IF($M161=0,"not needed",IF($M161=1,"not needed",IF($M161=2,"not done",)))) -> 
Y186: =IF(M186="","",IF($M186=0,"not done",IF($M186=1,"not done",IF($M186=2,"not done",)))) ->  | Z186: =IF(M186="","",IF($M186=0,"not needed",IF($M186=1,"not done",IF($M186=2,"not done",)))) ->  | AF186: =IF(W186="","",IF($M186=0,"not needed",IF($M186=1,"not needed",IF($M186=2,"not done",)))) -> 
AA193: =IF(M193="","",IF($M193=0,"not needed",IF($M193=1,"not needed",IF($M193=2,"not done",)))) -> 
Y218: =IF(M218="","",IF($M218=0,"not done",IF($M218=1,"not done",IF($M218=2,"not done",)))) ->  | Z218: =IF(M218="","",IF($M218=0,"not needed",IF($M218=1,"not done",IF($M218=2,"not done",)))) ->  | AF218: =IF(W218="","",IF($M218=0,"not needed",IF($M218=1,"not needed",IF($M218=2,"not done",)))) -> 
AA225: =IF(M225="","",IF($M225=0,"not needed",IF($M225=1,"not needed",IF($M225=2,"not done",)))) -> 
Y250: =IF(M250="","",IF($M250=0,"not done",IF($M250=1,"not done",IF($M250=2,"not done",)))) ->  | Z250: =IF(M250="","",IF($M250=0,"not needed",IF($M250=1,"not done",IF($M250=2,"not done",)))) ->  | AF250: =IF(W250="","",IF($M250=0,"not needed",IF($M250=1,"not needed",IF($M250=2,"not done",)))) -> 
AA257: =IF(M257="","",IF($M257=0,"not needed",IF($M257=1,"not needed",IF($M257=2,"not done",)))) -> 
B272: IC | C272: Opto/Photo coupler | D272: HCNR200-300E | E272: 1102 | G272: NA | H272: NA | I272: CC | J272: SO-8 | K272: HEWLETT-PACKARD | L272: 5 | M272: 1 | N272: CC-LPC | O272: Ordered | P272: Yes | Q272: 2 | S272: =Q272*1500+R272*2000 -> 3000 | T272: 50 | U272: 31 | V272: EN-STI | W272: EN-STI | Y272: =IF(M272="","",IF($M272=0,"not done",IF($M272=1,"not done",IF($M272=2,"not done",)))) -> not done | Z272: DONE | AA272: =IF(M272="","",IF($M272=0,"not needed",IF($M272=1,"not needed",IF($M272=2,"not done",)))) -> not needed | AB272: Fully Tested | AE272: TE-EPC-LPC
B273: Transistor | C273: Mosfet-N | D273: IRFB4310 | G273: 130A | H273: 100V | I273: CC | J273: TO-220AB | K273: INTERNATIONAL RECTIFIER | L273: 3 | M273: 0 | N273: CC | O273: To be ordered | P273: NO | Q273: 1 | S273: 1500 | T273: - | U273: - | V273: EN-STI | W273: EN-STI | Y273: not needed | Z273: done | AA273: not needed | AB273: Fully Tested | AD273: Switch-Tester | AE273: TE-EPC-LPC
B274: IC | C274: Operational Amplifier | D274: THS4521 | G274: NA | H274: 2V5-5V5 | I274: CC | J274: SOIC-8, MSOP-8 | K274: TEXAS INSTRUMENTS | L274: 4 | M274: 1 | N274: CC | O274: not ordered | P274: no | S274: 0 | T274: - | U274: - | V274: BE-BI | W274: BE-BI | Y274: not done | Z274: done | AA274: =IF(M274="","",IF($M274=0,"not needed",IF($M274=1,"not needed",IF($M274=2,"not done",)))) -> not needed | AB274: Fully Tested | AD274: COP-Tester | AE274: TE-EPC-LPC
B275: IC | C275: Voltage Regulator | D275: LP2980AIM5-3.3 | G275: 50mA | H275: 3V3 | I275: CC | J275: SOT-23 | K275: TEXAS INSTRUMENTS | L275: 5 | M275: 1 | N275: CC | O275: not ordered | P275: Yes | Q275: 1 | S275: 1500 | T275: - | U275: 47 | V275: EN-STI | W275: EN-STI | Y275: =IF(M275="","",IF($M275=0,"not done",IF($M275=1,"not done",IF($M275=2,"not done",)))) -> not done | Z275: done | AA275: not needed | AB275: To Be Tested | AD275: Switch-Tester | AE275: TE-EPC-LPC
B276: IC | C276: FPGA | D276: ProASIC3-A3PE1500-PQFP208 | G276: NA | H276: 3V3 | I276: CC | J276: PQFP208 | K276: MICROSEMI | L276: 5 | M276: 2 | N276: CC | O276: Not Ordered | P276: Yes | Q276: 1 | R276: 1 | S276: 3500 | T276: - | U276: all | V276: BE-CO | Y276: not done | Z276: done | AA276: not done | AB276: To Be Tested | AD276: BE-CO | AE276: BE-CO
B277: IC | C277: ADC | D277: ADS7258Y | G277: NA | H277: 5V | I277: CC | J277: TQFP | K277: TI | L277: 0 | M277: 1 | N277: CC | O277: Ordered | P277: NO | Q277: - | R277: - | S277: - | T277: - | U277: - | V277: TE-EPC | W277: TE-EPC | Y277: not needed | Z277: done | AA277: =IF(M277="","",IF($M277=0,"not needed",IF($M277=1,"not needed",IF($M277=2,"not done",)))) -> not needed | AB277: To Be Tested | AD277: ?? | AE277: TE-EPC-CC
B278: IC | C278: Operational Amplifier | D278: OP2177AR | K278: ANALOG DEVICES | L278: 3 | M278: 1 | N278: CC | O278: Not Ordered | P278: NO | X278: FGC2 | Y278: not needed | Z278: done | AA278: =IF(M278="","",IF($M278=0,"not needed",IF($M278=1,"not needed",IF($M278=2,"not done",)))) -> not needed | AB278: To Be Tested | AD278: COP-Tester | AE278: TE-EPC-LPC
B279: Transistor | C279: Bipolar NPN | D279: FMMT491 | G279: 1A | H279: 60V | I279: CC | J279: SOT-23 | K279: ZETEX SEMICONDUCTORS FMMT491 | L279: 2 | M279: 0 | N279: CC | O279: Not Ordered | P279: NO | X279: FGC2 | Y279: not needed | Z279: done | AA279: not needed | AB279: To Be Tested | AD279: Switch-Tester | AE279: TE-EPC-LPC

Sheet CC-Coments
A1: Comments:
A2: marked tests done at H4IRRAD 2011/2012
A3: marked tests done by EN-STI at the PSI (published reports from EDMS)
A4: UCL protons 2003
A5: CNRAD 2009 SD-360 tested at the up to 125Gy, 1e12 HEH/cm2
A6: CNRAD 2009 common core not put as 80Gy
A7: CNRAD 2009 SD-350 not put as 40Gy
A8: CNRAD 2009 SAR400 TID 180Gy, SEE 1.3e12 HEH/cm2
A9: TCC-2 report!?!? (WorldFIP+EDAC tests no report and follow-up)
A10: FCG2 tests at H4, RadWG presentation no put as only 30Gy
A11: Literature on oscillator - radaition failures, TID 200Gy, test - power up, irradiate and measure in the lab? Check with Markus the activation
A13: PZT2907A | B13: potential replacement for BCP53
A14: SN74ACT245D | B14: potential replacement for SN74LVC2T45
A15: OP2177AR | B15: potential replacement for OPA2227U
A17: 1) count EPC-CC type tests
A18: 2) count EPC-CC batch tests
A19: 3) compare with FGC2 component list

Sheet Sheet1
